Cogmind - Beta 11 X8 @@@ ROGUE MODE // 2021.11.10 @ 15:47:52 Player: ZEROAFFEX Result: Destroyed by L-31 Rogue with Katana Performance ------------- Evolutions (1) 500 Regions Visited (4) 800 Robots Destroyed (73) 365 Value Destroyed (1333) 1333 Prototype IDs (5) 100 Alien Tech Used (0) 0 Bonus (49) 49 TOTAL SCORE: 3147 Bonus ------- High Alert Combat Kills 49 Cogmind --------- Core Integrity 0/400 Matter 286/300 Energy 280/280 System Corruption 0% Temperature Cool (3) Movement Rolling (116) Ox2 Location -9/Mines Parts ------- > --- POWER (1) -------- Heavy Ion Engine > --- PROPULSION (3) --- Wheel Wheel Compact Wheel > --- UTILITY (3) ------ Huge Storage Unit Terrain Scan Processor Improved Light Armor Plating > --- WEAPON (2) ------- Autogun Improved Assault Rifle > --- INVENTORY (25) --- Heavy Ion Engine Light Nuclear Core Light Nuclear Core Wheel Wheel Huge Storage Unit Improved Terrain Scanner Medium Armor Plating Improved Light Armor Plating Hacking Suite Hacking Suite High-powered Tractor Beam Recalibrator Beam Rifle Beam Rifle Spread Laser Advanced Beam Cannon Heavy Assault Rifle Heavy Assault Rifle Improved Assault Rifle Improved Assault Rifle Improved Assault Rifle Rocket Launcher Rocket Launcher Mining Laser Peak State ------------ > --- POWER ------------ Heavy Ion Engine > --- PROPULSION ------- Wheel Wheel Wheel > --- UTILITY ---------- Huge Storage Unit Terrain Scan Processor Recalibrator > --- WEAPON ----------- Improved Assault Rifle Improved Assault Rifle > --- INVENTORY -------- Heavy Ion Engine Heavy Ion Engine Wheel Wheel Wheel Wheel Compact Wheel Huge Storage Unit Improved Terrain Scanner Medium Armor Plating Improved Light Armor Plating Improved Light Armor Plating Hacking Suite Hacking Suite High-powered Tractor Beam Small Laser Beam Rifle Advanced Beam Cannon Heavy Assault Rifle Heavy Assault Rifle Improved Assault Rifle Improved Assault Rifle Rocket Launcher Rocket Launcher Mining Laser [Rating: 24] Favorites ----------- Power Ion Engine Engine Ion Engine Propulsion Wheel Treads Light Treads Wheel Wheel Flight Unit Improved Flight Unit Utility Improved Terrain Scanner Device Improved Terrain Scanner Storage Large Storage Unit Processor Terrain Scan Processor Protection Improved Light Armor Plating Weapon Medium Laser Energy Gun Medium Laser Energy Cannon Advanced Beam Cannon Ballistic Gun Assault Rifle Special Weapon Mining Laser Build | -11 -10 -10 -9 -9 ------- Run | Scr Mat Min Mat Min Slots Evolved 2 | . . . 2 . Power . | . . . . . Propulsion 1 | . . . 1 . Utility 1 | . . . 1 . Weapon . | . . . . . Parts Attached 73 | 7 8 4 54 . Power 9 | 1 2 . 6 . Engine 9 | 1 2 . 6 . Core . | . . . . . Reactor . | . . . . . Propulsion 25 | 2 3 3 17 . Treads 1 | . . 1 . . Leg . | . . . . . Wheel 23 | 2 2 2 17 . Hover . | . . . . . Flight 1 | . 1 . . . Utility 16 | 2 1 . 13 . Device 5 | 1 . . 4 . Storage 4 | 1 1 . 2 . Processor 1 | . . . 1 . Hackware . | . . . . . Protection 6 | . . . 6 . Artifact . | . . . . . Weapon 23 | 2 2 1 18 . Energy Gun 9 | 1 . 1 7 . Energy Cannon 2 | . . . 2 . Ballistic Gun 11 | 1 2 . 8 . Ballistic Cannon . | . . . . . Launcher . | . . . . . Special Weapon 1 | . . . 1 . Impact Weapon . | . . . . . Slashing Weapon . | . . . . . Piercing Weapon . | . . . . . Special Melee Weapon . | . . . . . Unidentified Prototypes 5 | . 1 . 4 . Parts Lost 8 | . . . 8 . Power 1 | . . . 1 . Propulsion 4 | . . . 4 . Utility . | . . . . . Weapon 3 | . . . 3 . Highest Loss Streak 5 | . . . 5 . Average Slot Usage (%) 99 | . 100 100 99 100 Engine 12 | . 14 14 11 11 Wheel 29 | . 28 24 32 33 Device 10 | . 14 14 7 . Storage 12 | . 14 14 11 11 Processor 3 | . . . 6 11 Protection 4 | . . . 7 11 Energy Gun 9 | . 14 14 6 . Energy Cannon 1 | . . . 2 . Ballistic Gun 13 | . 14 14 12 22 Naked Turns . | . . . . . Heaviest Build 99 | 14 30 30 99 . Greatest Support 36 | 26 26 26 36 . Greatest Overweight (x) 3 | . 1 2 3 . Average Overweight (x) 1 | . . 1 1 . Largest Inventory Capacity 25 | 8 15 15 25 25 Average Capacity 18 | 7 14 15 22 25 Most Carried 25 | 7 15 15 25 25 Average Carried 16 | 5 12 14 20 25 Final Capacity 25 | 8 15 15 25 25 Final Carried 25 | 7 15 15 25 25 Class Distribution -------------------- 54% | Mutant 45% | Scavenger-Mutant Dominant Class ---------------- Mutant | -10/Materials Mutant | -10/Mines Scavenger-Mutant | -9/Materials Scavenger-Mutant | -9/Mines Resources | -11 -10 -10 -9 -9 ----------- Run | Scr Mat Min Mat Min Matter Collected 1427 | 284 116 112 915 . Remotely . | . . . . . Salvage Created 2438 | 106 341 317 1674 . Parts 171 | 10 21 19 121 . Haulers Intercepted 5 | . 1 . 4 . Recyclers Shooed 9 | 1 1 2 5 . Parts Field Recycled . | . . . . . Retrieved Matter . | . . . . . Parts Self-Destructed . | . . . . . Prevented . | . . . . . Kills | -11 -10 -10 -9 -9 ------- Run | Scr Mat Min Mat Min Combat Hostiles Destroyed 40 | . 7 8 25 . Guns 34 | . 7 8 19 . Cannons 6 | . . . 6 . Classes Destroyed 10 | 2 5 2 1 . Worker 8 | 2 . . 6 . Builder 5 | . 1 . 4 . Tunneler 8 | 4 . 1 3 . Hauler 5 | . 1 . 4 . Recycler 4 | . . 1 3 . Mechanic 2 | . 1 . 1 . Watcher 1 | . . . 1 . Swarmer 15 | . 3 6 6 . Grunt 16 | . 4 . 12 . Sentry 9 | . . 2 7 . Best Kill Streak 9 | 2 5 3 9 . Combat Bots Only 6 | . 5 3 6 . Max Kills in Single Turn 2 | 1 1 2 1 . Gunslinging 1 | . . 1 . . Exploded . | . . . . . Melee . | . . . . . Uniques/NPCs Destroyed . | . . . . . Combat | -11 -10 -10 -9 -9 -------- Run | Scr Mat Min Mat Min Damage Taken 2173 | . 237 134 1721 81 Core 499 | . 65 31 369 34 Absorbed by Shields . | . . . . . Core Remaining (%) 80 | 100 . 61 . . Volleys Fired 190 | 14 22 25 127 2 Largest 2 | 2 2 2 2 2 Hottest 124 | 70 70 70 124 46 Shots Fired 372 | 28 44 50 246 4 Gun 334 | 28 44 50 208 4 Cannon 34 | . . . 34 . Launcher . | . . . . . Special 4 | . . . 4 . Kinetic 191 | 14 22 25 126 4 Thermal 156 | 14 22 7 113 . Explosive . | . . . . . Electromagnetic 25 | . . 18 7 . Robot Hit Streak 14 | 6 7 8 14 10 Robot Miss Streak 6 | 3 3 5 6 2 Penetration Max . | . . . . . Secondary Targets 5 | . . 2 3 . Max Gunslinging Chain 1 | . . 1 1 . Shots Hit Robots 236 | 16 29 29 160 2 Core Hits 106 | 8 20 14 64 . Critical Kills 1 | . . . 1 . Critical Parts Destroyed 2 | . 1 1 . . Critical Strikes 11 | 3 1 1 6 . Burn 8 | 3 . . 5 . Destroy 3 | . 1 1 1 . Melee Attacks . | . . . . . Impact . | . . . . . Slashing . | . . . . . Piercing . | . . . . . Sneak Attacks . | . . . . . Combat Hostiles . | . . . . . Follow-up Attacks . | . . . . . Damage Inflicted 3352 | 171 335 373 2441 32 Guns 2963 | 171 335 373 2052 32 Cannons 389 | . . . 389 . Explosions . | . . . . . Melee . | . . . . . Ramming . | . . . . . Kinetic 1718 | 60 133 198 1295 32 Thermal 1470 | 111 202 76 1081 . Explosive . | . . . . . Electromagnetic 164 | . . 99 65 . Impact . | . . . . . Slashing . | . . . . . Piercing . | . . . . . Highest Corruption . | . . . . . Average Corruption . | . . . . . Corruption Purged . | . . . . . Overload Shots . | . . . . . Overflow Damage 1 | . . . 1 . Projectiles 1 | . . . 1 . Explosions . | . . . . . Melee . | . . . . . Knockbacks . | . . . . . Impact . | . . . . . Kinetic . | . . . . . Secondary . | . . . . . Self-Inflicted Damage . | . . . . . Shots . | . . . . . Rammed . | . . . . . Targets Rammed . | . . . . . Kicked . | . . . . . Crushed . | . . . . . Highest Temperature 366 | 50 148 52 366 12 Average Temperature 66 | 23 42 27 77 6 Received Heat Transfer 864 | . 114 9 735 6 Siege Activations . | . . . . . Robots Corrupted . | . . . . . Combat Hostiles . | . . . . . Parts Fried . | . . . . . Impact Corruptions . | . . . . . Robots Melted . | . . . . . Combat Hostiles . | . . . . . Parts Melted 6 | 2 . 2 2 . Heat Transferred 4292 | 555 592 222 2923 . Parts Sabotaged . | . . . . . Parts Stolen . | . . . . . Parts Stripped . | . . . . . Power Chain Reactions . | . . . . . Missiles Intercepted . | . . . . . Alert | -11 -10 -10 -9 -9 ------- Run | Scr Mat Min Mat Min Peak Influence 455 | 30 229 120 455 150 Initial 150 | . 19 6 46 150 Average 182 | 12 83 50 314 150 Maximum Alert Level 2 | . 1 . 2 . Low Security (%) 55 | 100 83 100 13 100 Level 1 37 | . 16 . 70 . Level 2 7 | . . . 15 . Level 3 . | . . . . . Level 4 . | . . . . . Level 5 . | . . . . . High Security . | . . . . . Max Security . | . . . . . Squads Dispatched 6 | . 2 . 4 . Investigation 1 | . . . 1 . Extermination . | . . . . . Reinforcement 5 | . 2 . 3 . Assault . | . . . . . Garrison . | . . . . . Intercept . | . . . . . Construction Impeded . | . . . . . Haulers Reinforced . | . . . . . Active Scanning Responses . | . . . . . Cargo Convoy Interrupts . | . . . . . Stealth | -11 -10 -10 -9 -9 --------- Run | Scr Mat Min Mat Min Distress Signals 6 | . 2 . 4 . Communications Jammed . | . . . . . Distress Signals . | . . . . . Times Spotted 70 | . 15 11 41 3 Peak Tracking Total 7 | . 7 3 5 3 Tactical Retreats 1 | . . . 1 . Traps | -11 -10 -10 -9 -9 ------- Run | Scr Mat Min Mat Min Traps Triggered 2 | . 1 . 1 . Indirectly . | . . . . . Trap Hack Attempts . | . . . . . Triggered . | . . . . . Disarmed . | . . . . . Reprogrammed . | . . . . . Reused . | . . . . . Traps Extracted . | . . . . . Installed . | . . . . . Triggered . | . . . . . Machines | -11 -10 -10 -9 -9 ---------- Run | Scr Mat Min Mat Min Machines Disabled 4 | . . 2 2 . Max in Single Turn 1 | . . 1 1 . Machines Sabotaged . | . . . . . Garrisons Compromised . | . . . . . Overloaded Fab Kills . | . . . . . Hacking | -11 -10 -10 -9 -9 --------- Run | Scr Mat Min Mat Min Machines Accessed 12 | . 5 1 6 . Terminals 12 | . 5 1 6 . Fabricators . | . . . . . Repair Stations . | . . . . . Recycling Units . | . . . . . Scanalyzers . | . . . . . Garrison Access . | . . . . . Total Hacks 28 | . 13 2 13 . Successful 14 | . 7 . 7 . Failed 14 | . 6 2 6 . Catastrophic 5 | . 2 . 3 . Database Lockouts . | . . . . . Manual 28 | . 13 2 13 . Terminals 28 | . 13 2 13 . Fabricators . | . . . . . Repair Stations . | . . . . . Recycling Units . | . . . . . Scanalyzers . | . . . . . Garrison Access . | . . . . . Terminal Hacks 6 | . 3 . 3 . Branch Access Points 1 | . . . 1 . Unreport Threat 2 | . 1 . 1 . Locate Traps 3 | . 2 . 1 . Fabricator Hacks . | . . . . . Repair Station Hacks . | . . . . . Recycling Unit Hacks . | . . . . . Scanalyzer . | . . . . . Garrison Access Hacks . | . . . . . Unauthorized Hacks 8 | . 4 . 4 . Terminals 8 | . 4 . 4 . Track 8 | . 4 . 4 . Fabricators . | . . . . . Repair Stations . | . . . . . Recycling Units . | . . . . . Scanalyzers . | . . . . . Garrison Access . | . . . . . Data Cores Recovered . | . . . . . Used . | . . . . . Hacking Detections 7 | . 3 . 4 . Full Trace Events 1 | . . . 1 . Feedback Events . | . . . . . Feedback Blocked . | . . . . . Robot Schematics Acquired . | . . . . . Robots Built . | . . . . . Authchips . | . . . . . Time . | . . . . . Total Robot Build Rating . | . . . . . Part Schematics Acquired . | . . . . . Parts Built . | . . . . . Authchips . | . . . . . Time . | . . . . . Total Part Build Rating . | . . . . . Parts Repaired . | . . . . . Time . | . . . . . Parts Recycled . | . . . . . Recycled Matter . | . . . . . Retrieved Matter . | . . . . . Retrieved Components . | . . . . . Parts Scanalyzed . | . . . . . Part Schematics Acquired . | . . . . . Parts Damaged . | . . . . . Bothacking | -11 -10 -10 -9 -9 ------------ Run | Scr Mat Min Mat Min Used RIF Installer . | . . . . . Robots Hacked . | . . . . . Non-combat . | . . . . . Combat . | . . . . . Robot Hacks Applied . | . . . . . Relay Couplers Released . | . . . . . Fabnet Peak Effective % . | . . . . . Robots Rewired . | . . . . . Allies Hacked . | . . . . . Hacks Repelled . | . . . . . Allies | -11 -10 -10 -9 -9 -------- Run | Scr Mat Min Mat Min Total Allies . | . . . . . Largest Group . | . . . . . Highest-Rated Group . | . . . . . Highest-Rated Ally . | . . . . . Total Orders . | . . . . . Ally Attacks . | . . . . . Total Damage . | . . . . . Kills . | . . . . . Allies Corrupted . | . . . . . Allies Melted . | . . . . . Intel | -11 -10 -10 -9 -9 ------- Run | Scr Mat Min Mat Min Robot Analysis Total . | . . . . . Derelict Logs Recovered 1 | . . 1 . . Drone Launches . | . . . . . Drone Recoveries . | . . . . . Exploration | -11 -10 -10 -9 -9 ------------- Run | Scr Mat Min Mat Min Turns Passed 2671 | 175 487 708 1297 4 Spaces Moved 1743 | 131 351 584 677 . Core 2 | 2 . . . . Treads . | . . . . . Legs . | . . . . . Wheels 1741 | 129 351 584 677 . Hover . | . . . . . Flight . | . . . . . Fastest Speed 50 | 50 90 105 86 . Average Speed 106 | 89 103 106 111 . Slowest Speed 125 | 100 105 110 125 . Overloaded Moves . | . . . . . Propulsion Burnouts . | . . . . . Robots Hopped . | . . . . . Cave-ins Triggered . | . . . . . Exploration Rate (%) 48 | 4 65 99 70 5 Regions Visited 4 Branch Regions 2 Pre-discovered Areas 1 | . . 1 . . Known Exits Taken 1 | . . . 1 . Unknown Exits Taken 3 | 1 1 1 . . Scrap Searched 1 | . . 1 . . Spaces Dug 4 | . . . 4 . Terrain Destroyed 4 | . . . 4 . Melee . | . . . . . Projectile 4 | . . . 4 . AOE . | . . . . . Terrain Rammed . | . . . . . Walls Destroyed . | . . . . . Machines Disabled . | . . . . . Actions | -11 -10 -10 -9 -9 --------- Run | Scr Mat Min Mat Min Total 2199 | 160 435 625 977 2 Wait 105 | 1 36 3 65 . Move 1739 | 130 350 583 676 . Hop . | . . . . . Pick Up 44 | 8 10 4 22 . Fast Attach 14 | 6 2 . 6 . Attach 13 | 1 1 1 10 . Detach 4 | . 1 . 3 . Swap 47 | . 5 3 39 . Drop 43 | . 8 6 29 . Fire 190 | 14 22 25 127 2 Melee . | . . . . . Ram . | . . . . . Kick . | . . . . . Crush . | . . . . . Escape Stasis . | . . . . . Rewire . | . . . . . Trap . | . . . . . Miscellaneous . | . . . . . Route ------- -11/Scrapyard -10/Materials (discovered 3 exits: *Mat / *Min x2) -10/Mines (discovered 2 exits: *Mat x2) -9/Materials (discovered 4 exits: [*Mat x2] / *Min x2) -9/Mines History --------- Turn | Location | Event 16 | -11/Scrapyard | Discovered new exit (range 15) 176 | -11/Scrapyard | Entered Materials 271 | -10/Materials | Discovered new exit (range 15) 316 | -10/Materials | Build established: Mutant 333 | -10/Materials | Discovered new exit (range 16) 503 | -10/Materials | Discovered new exit (range 16) 663 | -10/Materials | Entered Mines 737 | -10/Mines | Discovered new exit (range 7) 781 | -10/Mines | Joined a pair of Derelicts in attacking an 0b10 outpost 846 | -10/Mines | Learned 2 Materials zone layouts 864 | -10/Mines | Found a hidden stash of uninstalled traps 994 | -10/Mines | Discovered new exit (range 7) 1003 | -10/Mines | Learned location of Storage (-8) 1155 | -10/Mines | Received a Rocket Launcher from a helpful Derelict 1371 | -10/Mines | Entered Materials 1371 | -9/Materials | Evolved 2 slots: Propulsion x1, Utility x1 1650 | -9/Materials | Build established: Scavenger-Mutant 1924 | -9/Materials | Discovered new exit (range 9) 1976 | -9/Materials | Identified exit to Mines 2198 | -9/Materials | Discovered new exit (range 16) 2366 | -9/Materials | Core integrity fell below 50% 2408 | -9/Materials | Core integrity fell below 20% 2423 | -9/Materials | Lost 5 parts (1p3n1w) 2668 | -9/Materials | Entered Mines 2672 | -9/Mines | Destroyed by L-31 Rogue with Katana Last Messages --------------- 02560_ R-06 Scavenger collects Aluminum Leg. 02589_ G-34 Mercenary destroyed. 02591_ K-01 Serf collects debris. 02595_ Destroyed Lgt. Ion Engine. 02595_ K-01 Serf destroyed. 02599_ Acquired 35 matter. 02601_ Dropped Hvy. Assault Rifle. 02606_ A-02 Transporter destroyed. 02610_ Acquired 29 matter. 02617_ O-16 Technician: "IFF HANDSHAKE FAILED. SECURING TERMINAL." 02619_ ALERT: Hostiles spotted, dispatching reinforcements to Terminal M008. 02635_ Connecting with Terminal... LOCATION=MINES GOAL=ESCAPE Something is scanning the area. 02669_ A derelict emerges from the shadows: "Quick, help me dispose of these Unaware!" 02669_ L-31 Rogue: "SECOND INTRUDER APPROACHING. ELIMINATE." 02669_ G-34 Mercenary destroyed. Map ----- +----------------------------------------------------+ | ????????????????????????????????? | | ????????????????????????????????? | | ????????????????????????????????? | | ????????????????????????????????? | | ????????????????????????????????? | | ????????????????????????????????? | | ????????????????????????????????? | | ????????????????????????????????? | | ????????????????????????????????? | | ????????????????????????????????? | | ????????????????????????????????? | | ????????????????????????????????? | | ????????????????????????????????? | | ????????????????????????????????? | | ????????????????????????????????? | | ????????????????????????????????? | | ????????###?????????????????????? | | ?????### ##????????????????????? | | ????## ##???????????????????? | | ???## ##??????????????????? | | ???# ##?????????????????? | | ???# g #?????????????????? | | ????# #?????????????????? | | ?????# #?????????????????? | | ??????# %! #??????????????????? | | ??????# @l #????????????????????? | | ??????# g##????????????????????? | | ??????# ##?????????????????????? | | ??????# ??????????????????????? | | ??????# #??????????????????????? | | ??????# #??????????????????????? | | ??????# #??????????????????????? | | ??????# #??????????????????????? | | ??????# #??????????????????????? | | ??????# ???????????????????????? | | ?????? ???????????????????????? | | ?????? ???????????????????????? | | ?????? ???????????????????????? | | ?????? ???????????????????????? | | ?????? ???????????????????????? | | ??????# ???????????????????????? | | ????????????????????????????????? | | ????????????????????????????????? | | ????????????????????????????????? | | ????????????????????????????????? | | ????????????????????????????????? | | ????????????????????????????????? | | ????????????????????????????????? | | ????????????????????????????????? | | ????????????????????????????????? | +----------------------------------------------------+ Best States ------------- Heat Dissipation 28 Energy Generation 14 Energy Capacity 280 Matter Stores 300 Matter Capacity 300 Sight Range 16 Terrain Scan Range 16 Terrain Scan Density 85 Armor Coverage 150 Evasion (%) 42 Recoil Reduction 1 Item Schematics ----------------- None Robot Schematics ------------------ None Fabricated ------------ Nothing Alien Tech Used ----------------- None Achievements -------------- None Challenges ------------ None Game ------ Seed ReclamationRelayPlating Manual? 0 Play Time 00:39:54 Cumulative 80.3 hours Start 2021.11.10 @ 13:36:02 End 2021.11.10 @ 15:47:52 Sessions 3 Manual Loads 0 Difficulty Rogue Special Mode None Game No. 63 Rogue 61 Adventurer 2 Explorer 0 Win Type - Total 0 Types 0/0/0/0/0/0/0/0/0 Lore% 34 Gallery% 34 Achievement% 32 Wizard Run 0 Options --------- ASCII 0 Keyboard 0 Movement Mouse Keybinds 1 Fullscreen 1 Font 18/TerminusBold Map View 76x50 Tactical HUD 1 Map Filters NONE Filters NONE Steam 1 RUN: 286532c3-f798-4cb0-b562-042fa52aa1d6